[Event "*** Titled Tuesday Blitz"]
[Site "Chess.com"]
[Date "2020.10.20"]
[Round "4"]
[White "andresgv36"]
[Black "Srisshhhtea"]
[Result "1-0"]
[WhiteElo "2423"]
[BlackElo "2255"]
[TimeControl "180+1"]
[EndTime "10:38:52 PDT"]
[Termination "andresgv36 won by resignation"]

1. d4 {[%clk 0:02:57.8]} 1... d5 {[%clk 0:02:58.8]} 2. Bf4 {[%clk 0:02:57.6]}
2... Nf6 {[%clk 0:02:57.7]} 3. e3 {[%clk 0:02:57.6]} 3... e6 {[%clk 0:02:57.7]}
4. Nf3 {[%clk 0:02:57.2]} 4... Bd6 {[%clk 0:02:58.6]} 5. Nbd2 {[%clk 0:02:55.8]}
5... c5 {[%clk 0:02:57]} 6. c3 {[%clk 0:02:55]} 6... Nc6 {[%clk 0:02:55.1]} 7.
Bg3 {[%clk 0:02:54]} 7... O-O {[%clk 0:02:50.2]} 8. Bd3 {[%clk 0:02:53.2]} 8...
Re8 {[%clk 0:02:47.4]} 9. Ne5 {[%clk 0:02:51.2]} 9... Qc7 {[%clk 0:02:26.5]} 10.
f4 {[%clk 0:02:44.4]} 10... b6 {[%clk 0:02:23.9]} 11. Bh4 {[%clk 0:02:38.2]}
11... cxd4 {[%clk 0:02:01.8]} 12. exd4 {[%clk 0:02:37.3]} 12... Ne4 {[%clk
0:01:58.6]} 13. Nxe4 {[%clk 0:02:28.5]} 13... dxe4 {[%clk 0:01:59.2]} 14. Bxe4
{[%clk 0:02:27.6]} 14... Bxe5 {[%clk 0:01:58.5]} 15. fxe5 {[%clk 0:02:22.3]}
15... Nxe5 {[%clk 0:01:36.2]} 16. Bxa8 {[%clk 0:02:00.7]} 16... Ng6 {[%clk
0:01:16.9]} 17. Bg3 {[%clk 0:01:55.7]} 17... e5 {[%clk 0:01:17.1]} 18. O-O
{[%clk 0:01:48.8]} 18... Ba6 {[%clk 0:01:16.7]} 19. Qa4 {[%clk 0:01:37.8]} 19...
Qc8 {[%clk 0:01:15.9]} 20. Bc6 {[%clk 0:01:21.5]} 20... Bxf1 {[%clk 0:01:03]}
21. Bxe8 {[%clk 0:01:17.3]} 21... Bd3 {[%clk 0:01:01.8]} 22. Qd7 {[%clk
0:01:10]} 1-0

[Event "*** Titled Tuesday Blitz"]
[Site "Chess.com"]
[Date "2020.10.20"]
[Round "4"]
[White "zmeeed67"]
[Black "pastouche06"]
[Result "1-0"]
[WhiteElo "2350"]
[BlackElo "2460"]
[TimeControl "180+1"]
[EndTime "10:38:56 PDT"]
[Termination "zmeeed67 won by resignation"]

1. e4 {[%clk 0:03:00.9]} 1... c6 {[%clk 0:02:59.9]} 2. d4 {[%clk 0:03:00]} 2...
d5 {[%clk 0:03:00.2]} 3. e5 {[%clk 0:02:59.9]} 3... Bf5 {[%clk 0:02:57.4]} 4.
Nf3 {[%clk 0:02:59.4]} 4... e6 {[%clk 0:02:57.7]} 5. Be2 {[%clk 0:02:58.6]} 5...
Ne7 {[%clk 0:02:57.9]} 6. O-O {[%clk 0:02:58.2]} 6... Ng6 {[%clk 0:02:58.3]} 7.
Be3 {[%clk 0:02:55.9]} 7... Nd7 {[%clk 0:02:55.9]} 8. c3 {[%clk 0:02:55.3]} 8...
f6 {[%clk 0:02:55.8]} 9. exf6 {[%clk 0:02:53.5]} 9... Qxf6 {[%clk 0:02:55]} 10.
b4 {[%clk 0:02:46.9]} 10... Bd6 {[%clk 0:02:50.8]} 11. b5 {[%clk 0:02:46.3]}
11... O-O {[%clk 0:02:46.8]} 12. bxc6 {[%clk 0:02:45.8]} 12... bxc6 {[%clk
0:02:47.7]} 13. Nbd2 {[%clk 0:02:43.5]} 13... Nf4 {[%clk 0:02:45.6]} 14. Bxf4
{[%clk 0:02:18.4]} 14... Bxf4 {[%clk 0:02:46.5]} 15. Qa4 {[%clk 0:02:12.9]}
15... e5 {[%clk 0:02:36.3]} 16. dxe5 {[%clk 0:02:04.8]} 16... Nxe5 {[%clk
0:02:37.2]} 17. Qxf4 {[%clk 0:01:39.4]} 17... Nxf3+ {[%clk 0:02:23.5]} 18. Nxf3
{[%clk 0:01:38.2]} 18... Rab8 {[%clk 0:02:20.8]} 19. Qd4 {[%clk 0:01:35.7]}
19... Rb2 {[%clk 0:02:17.8]} 20. Qxf6 {[%clk 0:01:23.2]} 20... Rxf6 {[%clk
0:02:18.7]} 21. Rfe1 {[%clk 0:01:23.6]} 21... Be4 {[%clk 0:02:17.3]} 22. c4
{[%clk 0:01:11.7]} 22... Bxf3 {[%clk 0:01:57.9]} 23. Bxf3 {[%clk 0:01:08.5]}
23... dxc4 {[%clk 0:01:57.9]} 24. Rac1 {[%clk 0:01:02]} 24... Rxa2 {[%clk
0:01:52.7]} 25. Rxc4 {[%clk 0:01:01.8]} 25... Ra6 {[%clk 0:01:52.1]} 26. h4
{[%clk 0:00:59.9]} 26... Rb6 {[%clk 0:01:48.2]} 27. Re7 {[%clk 0:00:58]} 27...
a5 {[%clk 0:01:46.8]} 28. Rc7 {[%clk 0:00:55.9]} 28... Rb4 {[%clk 0:01:45.3]}
29. R4xc6 {[%clk 0:00:52.5]} 1-0

[Event "*** Titled Tuesday Blitz"]
[Site "Chess.com"]
[Date "2020.10.20"]
[Round "4"]
[White "Bulldog167"]
[Black "MarceloPlaya"]
[Result "1-0"]
[WhiteElo "2759"]
[BlackElo "2301"]
[TimeControl "180+1"]
[EndTime "10:39:00 PDT"]
[Termination "Bulldog167 won by resignation"]

1. e4 {[%clk 0:03:00.9]} 1... e6 {[%clk 0:02:59.4]} 2. b3 {[%clk 0:02:57.1]}
2... d5 {[%clk 0:02:58.4]} 3. Bb2 {[%clk 0:02:57.5]} 3... dxe4 {[%clk 0:02:56]}
4. Nc3 {[%clk 0:02:57.7]} 4... Nf6 {[%clk 0:02:54.9]} 5. Qe2 {[%clk 0:02:56.5]}
5... Nc6 {[%clk 0:02:50]} 6. Nxe4 {[%clk 0:02:54.6]} 6... Be7 {[%clk 0:02:49.9]}
7. Nf3 {[%clk 0:02:51.8]} 7... Nxe4 {[%clk 0:02:48.6]} 8. Qxe4 {[%clk
0:02:51.8]} 8... Bf6 {[%clk 0:02:48.1]} 9. d4 {[%clk 0:02:51.4]} 9... Qd5 {[%clk
0:02:40.8]} 10. Qe3 {[%clk 0:02:34.1]} 10... Bd7 {[%clk 0:02:18.4]} 11. Bc4
{[%clk 0:02:24]} 11... Qa5+ {[%clk 0:01:59]} 12. Bc3 {[%clk 0:02:23]} 12... Qa3
{[%clk 0:01:56.1]} 13. O-O {[%clk 0:02:10.9]} 13... O-O {[%clk 0:01:50.1]} 14.
Rad1 {[%clk 0:01:40.2]} 14... Qxa2 {[%clk 0:01:21.5]} 15. d5 {[%clk 0:01:28.6]}
15... exd5 {[%clk 0:00:49.2]} 16. Bxf6 {[%clk 0:01:23.7]} 16... dxc4 {[%clk
0:00:39.4]} 17. Qg5 {[%clk 0:01:22.4]} 17... g6 {[%clk 0:00:34.6]} 18. Qh6
{[%clk 0:01:22.3]} 1-0

[Event "*** Titled Tuesday Blitz"]
[Site "Chess.com"]
[Date "2020.10.20"]
[Round "4"]
[White "GMJustin"]
[Black "Gusarov91"]
[Result "0-1"]
[WhiteElo "2270"]
[BlackElo "2581"]
[TimeControl "180+1"]
[EndTime "10:39:01 PDT"]
[Termination "Gusarov91 won on time"]

1. e4 {[%clk 0:02:55.7]} 1... c6 {[%clk 0:02:54]} 2. d4 {[%clk 0:02:51.9]} 2...
Na6 {[%clk 0:02:54.2]} 3. Nc3 {[%clk 0:02:46.5]} 3... Nc7 {[%clk 0:02:54.5]} 4.
Nf3 {[%clk 0:02:44.1]} 4... d5 {[%clk 0:02:54.2]} 5. h3 {[%clk 0:02:31.1]} 5...
dxe4 {[%clk 0:02:48.7]} 6. Nxe4 {[%clk 0:02:30.5]} 6... Bf5 {[%clk 0:02:45.4]}
7. Ng3 {[%clk 0:02:14]} 7... Bg6 {[%clk 0:02:44.9]} 8. h4 {[%clk 0:01:59.7]}
8... h6 {[%clk 0:02:43.2]} 9. Ne5 {[%clk 0:01:13.6]} 9... Bh7 {[%clk 0:02:37.2]}
10. Qh5 {[%clk 0:01:05.9]} 10... g6 {[%clk 0:02:25.2]} 11. Qf3 {[%clk
0:01:01.7]} 11... Nf6 {[%clk 0:02:25.1]} 12. Bc4 {[%clk 0:00:53.7]} 12... e6
{[%clk 0:02:20.7]} 13. c3 {[%clk 0:00:49]} 13... Be7 {[%clk 0:02:09.8]} 14. Bxh6
{[%clk 0:00:41]} 14... Rg8 {[%clk 0:02:04.1]} 15. Bg5 {[%clk 0:00:36.3]} 15...
Ncd5 {[%clk 0:02:03]} 16. Ne4 {[%clk 0:00:20.1]} 16... Rg7 {[%clk 0:01:56.3]}
17. Bxd5 {[%clk 0:00:08]} 17... Nxd5 {[%clk 0:01:54.3]} 18. Bxe7 {[%clk
0:00:05.8]} 18... Qxe7 {[%clk 0:01:53.8]} 19. O-O-O {[%clk 0:00:01.8]} 19...
O-O-O {[%clk 0:01:52.8]} 0-1

[Event "*** Titled Tuesday Blitz"]
[Site "Chess.com"]
[Date "2020.10.20"]
[Round "4"]
[White "Grieve72"]
[Black "Vanina1989"]
[Result "0-1"]
[WhiteElo "2451"]
[BlackElo "2674"]
[TimeControl "180+1"]
[EndTime "10:39:08 PDT"]
[Termination "Vanina1989 won by checkmate"]

1. d4 {[%clk 0:03:00.9]} 1... Nf6 {[%clk 0:02:58.8]} 2. Bg5 {[%clk 0:03:01]}
2... d5 {[%clk 0:02:58.3]} 3. Bxf6 {[%clk 0:02:59.9]} 3... gxf6 {[%clk
0:02:58.3]} 4. c4 {[%clk 0:02:59.9]} 4... e5 {[%clk 0:02:33.8]} 5. Nc3 {[%clk
0:02:51.5]} 5... c5 {[%clk 0:02:04.2]} 6. e3 {[%clk 0:02:26.5]} 6... cxd4 {[%clk
0:02:03.8]} 7. exd4 {[%clk 0:02:25.8]} 7... Nc6 {[%clk 0:02:03.7]} 8. cxd5
{[%clk 0:02:14.6]} 8... Nxd4 {[%clk 0:02:01.7]} 9. Nge2 {[%clk 0:02:10.7]} 9...
Qb6 {[%clk 0:01:52.2]} 10. Qd2 {[%clk 0:01:27.7]} 10... Bf5 {[%clk 0:01:24.6]}
11. Rc1 {[%clk 0:01:26.8]} 11... Bb4 {[%clk 0:01:18]} 12. a3 {[%clk 0:01:15]}
12... Nb3 {[%clk 0:01:14.9]} 13. Qd1 {[%clk 0:00:47.2]} 13... Bc5 {[%clk
0:01:12.7]} 14. Ng3 {[%clk 0:00:26.9]} 14... Bxf2+ {[%clk 0:01:11.8]} 15. Ke2
{[%clk 0:00:26.9]} 15... Qe3# {[%clk 0:01:12]} 0-1

[Event "*** Titled Tuesday Blitz"]
[Site "Chess.com"]
[Date "2020.10.20"]
[Round "4"]
[White "ChessArchitect64"]
[Black "MalyDominator"]
[Result "0-1"]
[WhiteElo "2046"]
[BlackElo "2373"]
[TimeControl "180+1"]
[EndTime "10:39:14 PDT"]
[Termination "MalyDominator won by resignation"]

1. e4 {[%clk 0:02:59.7]} 1... c5 {[%clk 0:02:56.8]} 2. Nf3 {[%clk 0:02:58.8]}
2... d6 {[%clk 0:02:40.8]} 3. Bb5+ {[%clk 0:02:57.8]} 3... Nd7 {[%clk
0:02:40.1]} 4. O-O {[%clk 0:02:52.4]} 4... a6 {[%clk 0:02:39.7]} 5. Bxd7+ {[%clk
0:02:51.9]} 5... Bxd7 {[%clk 0:02:37.5]} 6. c3 {[%clk 0:02:52.2]} 6... Nf6
{[%clk 0:02:37.2]} 7. Re1 {[%clk 0:02:51.7]} 7... g6 {[%clk 0:02:35.6]} 8. d4
{[%clk 0:02:51.3]} 8... cxd4 {[%clk 0:02:33.2]} 9. cxd4 {[%clk 0:02:51.2]} 9...
Bg7 {[%clk 0:02:33.8]} 10. Nc3 {[%clk 0:02:50.2]} 10... O-O {[%clk 0:02:33.2]}
11. Bf4 {[%clk 0:02:45.7]} 11... Rc8 {[%clk 0:02:32.4]} 12. h3 {[%clk
0:02:34.3]} 12... b5 {[%clk 0:02:31.1]} 13. e5 {[%clk 0:02:32.9]} 13... Ne8
{[%clk 0:02:26.6]} 14. exd6 {[%clk 0:02:16.6]} 14... Nxd6 {[%clk 0:02:15.2]} 15.
Bxd6 {[%clk 0:02:11.3]} 15... exd6 {[%clk 0:02:14.8]} 16. Ne4 {[%clk 0:02:11.5]}
16... Qb6 {[%clk 0:02:10.6]} 17. Qb3 {[%clk 0:01:50.5]} 17... Be6 {[%clk
0:02:03.5]} 18. d5 {[%clk 0:01:49.7]} 18... Bf5 {[%clk 0:02:03.4]} 19. Ng3
{[%clk 0:01:39.1]} 19... Bc2 {[%clk 0:02:02.2]} 20. Qa3 {[%clk 0:01:23.2]} 20...
b4 {[%clk 0:01:59.7]} 21. Qe3 {[%clk 0:01:22.2]} 21... Qxe3 {[%clk 0:01:57.6]}
22. Rxe3 {[%clk 0:01:21.4]} 22... Bxb2 {[%clk 0:01:57.2]} 23. Rae1 {[%clk
0:01:21.3]} 23... Bc3 {[%clk 0:01:56]} 24. R1e2 {[%clk 0:01:16]} 24... Bd1
{[%clk 0:01:52.3]} 25. Re1 {[%clk 0:01:10.3]} 25... Bxe1 {[%clk 0:01:50]} 26.
Rxe1 {[%clk 0:01:11.2]} 26... Bxf3 {[%clk 0:01:49.5]} 27. gxf3 {[%clk
0:01:11.3]} 27... Rfe8 {[%clk 0:01:45.9]} 28. Rb1 {[%clk 0:01:11.4]} 28... a5
{[%clk 0:01:45.3]} 29. Ne4 {[%clk 0:01:10.9]} 29... Red8 {[%clk 0:01:45.5]} 30.
Kf1 {[%clk 0:01:03.5]} 30... f5 {[%clk 0:01:44.7]} 31. Ng5 {[%clk 0:01:02.7]}
31... Rc2 {[%clk 0:01:44.8]} 32. Ne6 {[%clk 0:01:02.6]} 32... Rdc8 {[%clk
0:01:43.7]} 33. Re1 {[%clk 0:01:02.9]} 33... Rxa2 {[%clk 0:01:42.8]} 34. Ng5
{[%clk 0:01:01.3]} 34... b3 {[%clk 0:01:38.1]} 35. Rb1 {[%clk 0:01:00]} 35... b2
{[%clk 0:01:37.9]} 36. Kg2 {[%clk 0:00:59.9]} 36... Rc1 {[%clk 0:01:37.8]} 0-1

[Event "*** Titled Tuesday Blitz"]
[Site "Chess.com"]
[Date "2020.10.20"]
[Round "4"]
[White "kinga2008"]
[Black "Slovak_fighter2000"]
[Result "0-1"]
[WhiteElo "2178"]
[BlackElo "2400"]
[TimeControl "180+1"]
[EndTime "10:39:21 PDT"]
[Termination "Slovak_fighter2000 won by resignation"]

1. e4 {[%clk 0:02:53.6]} 1... c5 {[%clk 0:02:53.6]} 2. Nf3 {[%clk 0:02:50.6]}
2... e6 {[%clk 0:02:52.8]} 3. c3 {[%clk 0:02:37.8]} 3... d5 {[%clk 0:02:44.4]}
4. e5 {[%clk 0:02:24.5]} 4... Nc6 {[%clk 0:02:43.7]} 5. d4 {[%clk 0:02:06.3]}
5... Qb6 {[%clk 0:02:42.7]} 6. a3 {[%clk 0:02:03.8]} 6... c4 {[%clk 0:02:42.5]}
7. Be2 {[%clk 0:02:00.7]} 7... f6 {[%clk 0:02:42.7]} 8. O-O {[%clk 0:01:47.6]}
8... fxe5 {[%clk 0:02:41.5]} 9. Nxe5 {[%clk 0:01:45.9]} 9... Nxe5 {[%clk
0:02:41.2]} 10. dxe5 {[%clk 0:01:45]} 10... Bc5 {[%clk 0:02:41.6]} 11. Bh5+
{[%clk 0:01:30.5]} 11... g6 {[%clk 0:02:41.3]} 12. Qg4 {[%clk 0:01:28.8]} 12...
Ne7 {[%clk 0:02:38]} 13. Be3 {[%clk 0:01:00.3]} 13... gxh5 {[%clk 0:02:31.2]}
14. Qxh5+ {[%clk 0:00:57.7]} 14... Ng6 {[%clk 0:02:31]} 15. Nd2 {[%clk
0:00:50.4]} 15... Bd7 {[%clk 0:02:22.8]} 16. Bxc5 {[%clk 0:00:44.8]} 16... Qxc5
{[%clk 0:02:23.7]} 17. Kh1 {[%clk 0:00:43.4]} 17... O-O-O {[%clk 0:02:18.7]} 18.
f4 {[%clk 0:00:41]} 18... Qe3 {[%clk 0:02:15]} 19. Rad1 {[%clk 0:00:36.8]} 19...
Nxf4 {[%clk 0:02:09.3]} 20. Qg5 {[%clk 0:00:30.5]} 20... Rdf8 {[%clk 0:02:05.9]}
21. Nxc4 {[%clk 0:00:17.5]} 21... dxc4 {[%clk 0:02:03.3]} 22. Rd4 {[%clk
0:00:16.9]} 22... Nxg2 {[%clk 0:01:53.9]} 23. Qxg2 {[%clk 0:00:02.3]} 23...
Rxf1+ {[%clk 0:01:51.8]} 24. Qxf1 {[%clk 0:00:03.2]} 24... Bc6+ {[%clk
0:01:51.3]} 0-1

[Event "*** Titled Tuesday Blitz"]
[Site "Chess.com"]
[Date "2020.10.20"]
[Round "4"]
[White "Margarita2907"]
[Black "AniJak"]
[Result "0-1"]
[WhiteElo "2171"]
[BlackElo "2394"]
[TimeControl "180+1"]
[EndTime "10:39:24 PDT"]
[Termination "AniJak won by resignation"]

1. e4 {[%clk 0:03:00.9]} 1... c6 {[%clk 0:02:59.9]} 2. d4 {[%clk 0:03:00.1]}
2... d5 {[%clk 0:03:00]} 3. e5 {[%clk 0:02:58.8]} 3... Bf5 {[%clk 0:02:59]} 4.
Nd2 {[%clk 0:02:59.2]} 4... e6 {[%clk 0:02:58.9]} 5. Nb3 {[%clk 0:02:58.9]} 5...
Nd7 {[%clk 0:02:57.8]} 6. Be2 {[%clk 0:02:58.8]} 6... Ne7 {[%clk 0:02:57.3]} 7.
Nf3 {[%clk 0:02:58.7]} 7... h6 {[%clk 0:02:57.4]} 8. O-O {[%clk 0:02:58.6]} 8...
g5 {[%clk 0:02:57.4]} 9. a4 {[%clk 0:02:52.8]} 9... Bg7 {[%clk 0:02:56]} 10. a5
{[%clk 0:02:50.5]} 10... Qc7 {[%clk 0:02:56]} 11. h3 {[%clk 0:02:28.6]} 11... c5
{[%clk 0:02:49.9]} 12. c3 {[%clk 0:02:25.2]} 12... a6 {[%clk 0:02:46.2]} 13. Qd2
{[%clk 0:02:05.2]} 13... O-O {[%clk 0:02:37.3]} 14. Qe3 {[%clk 0:01:56.9]} 14...
Rac8 {[%clk 0:02:29.3]} 15. Nh2 {[%clk 0:01:51.9]} 15... Bg6 {[%clk 0:02:28.4]}
16. f4 {[%clk 0:01:37.1]} 16... Nf5 {[%clk 0:02:28.1]} 17. Qf3 {[%clk
0:01:36.4]} 17... cxd4 {[%clk 0:02:25.9]} 18. cxd4 {[%clk 0:01:35.4]} 18... f6
{[%clk 0:02:19.7]} 19. fxg5 {[%clk 0:01:27.4]} 19... fxg5 {[%clk 0:02:18.4]} 20.
Qd3 {[%clk 0:01:02]} 20... Nh4 {[%clk 0:02:17.4]} 21. Qe3 {[%clk 0:00:54.4]}
21... Be4 {[%clk 0:02:13]} 22. Rxf8+ {[%clk 0:00:47.9]} 22... Rxf8 {[%clk
0:02:12.6]} 23. Bf1 {[%clk 0:00:48.4]} 23... Qc2 {[%clk 0:02:07.9]} 24. Nd2
{[%clk 0:00:45.7]} 24... Nf5 {[%clk 0:02:04.7]} 25. Qc3 {[%clk 0:00:37.6]} 25...
Rc8 {[%clk 0:01:56]} 26. Qxc2 {[%clk 0:00:35.7]} 26... Rxc2 {[%clk 0:01:56]} 27.
Nxe4 {[%clk 0:00:35.1]} 27... dxe4 {[%clk 0:01:55.5]} 28. b3 {[%clk 0:00:23.2]}
28... Nxd4 {[%clk 0:01:53.4]} 29. Bc4 {[%clk 0:00:23.2]} 29... Nxe5 {[%clk
0:01:51.3]} 30. Be3 {[%clk 0:00:21]} 30... Nxc4 {[%clk 0:01:49.4]} 31. bxc4
{[%clk 0:00:21.9]} 31... Ne2+ {[%clk 0:01:49]} 32. Kf1 {[%clk 0:00:18.2]} 32...
Bxa1 {[%clk 0:01:49.9]} 0-1

[Event "*** Titled Tuesday Blitz"]
[Site "Chess.com"]
[Date "2020.10.20"]
[Round "4"]
[White "Boundless_Strike"]
[Black "karwowskikacper"]
[Result "1-0"]
[WhiteElo "2499"]
[BlackElo "2335"]
[TimeControl "180+1"]
[EndTime "10:39:40 PDT"]
[Termination "Boundless_Strike won on time"]

1. e4 {[%clk 0:03:00.9]} 1... c5 {[%clk 0:02:57.5]} 2. Nc3 {[%clk 0:03:00.2]}
2... Nc6 {[%clk 0:02:57.4]} 3. f4 {[%clk 0:03:00.9]} 3... d6 {[%clk 0:02:51.9]}
4. Nf3 {[%clk 0:03:01.2]} 4... g6 {[%clk 0:02:51.6]} 5. Bc4 {[%clk 0:03:01.6]}
5... Bg7 {[%clk 0:02:50.7]} 6. O-O {[%clk 0:03:02.2]} 6... Bg4 {[%clk 0:02:47]}
7. Bxf7+ {[%clk 0:03:01.3]} 7... Kf8 {[%clk 0:02:45.5]} 8. Bb3 {[%clk
0:02:53.2]} 8... Nd4 {[%clk 0:02:43.3]} 9. Ne2 {[%clk 0:02:45.8]} 9... Bxf3
{[%clk 0:02:41.6]} 10. gxf3 {[%clk 0:02:44.9]} 10... Nxe2+ {[%clk 0:02:40.5]}
11. Qxe2 {[%clk 0:02:44.4]} 11... Nf6 {[%clk 0:02:41]} 12. d3 {[%clk 0:02:42.3]}
12... b5 {[%clk 0:02:40.8]} 13. a4 {[%clk 0:02:40.8]} 13... a6 {[%clk
0:02:40.5]} 14. axb5 {[%clk 0:02:41.4]} 14... axb5 {[%clk 0:02:41.4]} 15. Be3
{[%clk 0:02:41.8]} 15... Bh6 {[%clk 0:02:38.9]} 16. Kh1 {[%clk 0:02:38.6]} 16...
Kg7 {[%clk 0:02:38.5]} 17. f5 {[%clk 0:02:38.4]} 17... Qc7 {[%clk 0:02:32.2]}
18. Bxh6+ {[%clk 0:02:32.3]} 18... Kxh6 {[%clk 0:02:31.3]} 19. Qe3+ {[%clk
0:02:32.6]} 19... Kg7 {[%clk 0:02:31]} 20. Qg5 {[%clk 0:02:32.9]} 20... c4
{[%clk 0:02:26.2]} 21. Ba2 {[%clk 0:02:19.2]} 21... cxd3 {[%clk 0:00:11.2]} 22.
cxd3 {[%clk 0:02:16.6]} 22... Qc2 {[%clk 0:00:06.5]} 23. Qe3 {[%clk 0:01:38.9]}
23... Qxb2 {[%clk 0:00:05.2]} 24. Rfb1 {[%clk 0:01:35.8]} 24... Qe5 {[%clk
0:00:02.8]} 25. d4 {[%clk 0:01:28.8]} 1-0

[Event "*** Titled Tuesday Blitz"]
[Site "Chess.com"]
[Date "2020.10.20"]
[Round "4"]
[White "Sacbutt"]
[Black "Sn00pPawn"]
[Result "0-1"]
[WhiteElo "2271"]
[BlackElo "2007"]
[TimeControl "180+1"]
[EndTime "10:39:41 PDT"]
[Termination "Sn00pPawn won by checkmate"]

1. e4 {[%clk 0:03:00.9]} 1... c5 {[%clk 0:02:59.2]} 2. Nf3 {[%clk 0:03:00.4]}
2... d6 {[%clk 0:02:56.5]} 3. d3 {[%clk 0:03:01.3]} 3... Nc6 {[%clk 0:02:55.3]}
4. c3 {[%clk 0:02:59.7]} 4... Nf6 {[%clk 0:02:54.4]} 5. Nbd2 {[%clk 0:02:56.8]}
5... b6 {[%clk 0:02:51.2]} 6. g3 {[%clk 0:02:56.1]} 6... Bb7 {[%clk 0:02:50.8]}
7. Bg2 {[%clk 0:02:56.2]} 7... e6 {[%clk 0:02:43]} 8. O-O {[%clk 0:02:55.7]}
8... Be7 {[%clk 0:02:42.7]} 9. Qc2 {[%clk 0:02:54.9]} 9... O-O {[%clk
0:02:42.3]} 10. Re1 {[%clk 0:02:54.5]} 10... a6 {[%clk 0:02:38.4]} 11. Nf1
{[%clk 0:02:52.3]} 11... b5 {[%clk 0:02:29.8]} 12. h4 {[%clk 0:02:51.3]} 12...
Qc7 {[%clk 0:02:04.9]} 13. N1h2 {[%clk 0:02:45.1]} 13... c4 {[%clk 0:01:40.7]}
14. d4 {[%clk 0:02:43.8]} 14... e5 {[%clk 0:01:39.2]} 15. d5 {[%clk 0:02:42.7]}
15... Na5 {[%clk 0:01:26.4]} 16. Bg5 {[%clk 0:02:41.9]} 16... Bc8 {[%clk
0:01:20.6]} 17. Be3 {[%clk 0:02:19.2]} 17... Nb7 {[%clk 0:00:49.6]} 18. a4
{[%clk 0:02:17.8]} 18... Bd7 {[%clk 0:00:35.3]} 19. axb5 {[%clk 0:02:13.8]}
19... axb5 {[%clk 0:00:33.5]} 20. Nd2 {[%clk 0:02:13.1]} 20... Nc5 {[%clk
0:00:18]} 21. Bxc5 {[%clk 0:02:07.8]} 21... Qxc5 {[%clk 0:00:18.9]} 22. Nhf1
{[%clk 0:02:05.6]} 22... Ng4 {[%clk 0:00:16.6]} 23. Ne3 {[%clk 0:02:05.7]} 23...
Nxe3 {[%clk 0:00:16.1]} 24. Rxe3 {[%clk 0:02:06.6]} 24... Rxa1+ {[%clk
0:00:14.7]} 25. Kh2 {[%clk 0:02:06]} 25... Rfa8 {[%clk 0:00:14.9]} 26. Nf3
{[%clk 0:02:03.5]} 26... Qc8 {[%clk 0:00:14.7]} 27. b3 {[%clk 0:01:59.8]} 27...
R8a2 {[%clk 0:00:12.6]} 28. Qxa2 {[%clk 0:01:52.5]} 28... Rxa2 {[%clk
0:00:12.7]} 29. b4 {[%clk 0:01:53.3]} 29... Bg4 {[%clk 0:00:11.8]} 30. h5 {[%clk
0:01:54.2]} 30... Bd8 {[%clk 0:00:11.8]} 31. Ne1 {[%clk 0:01:52.8]} 31... Bb6
{[%clk 0:00:11.9]} 32. Rf3 {[%clk 0:01:51.7]} 32... Bxf3 {[%clk 0:00:11.5]} 33.
Bxf3 {[%clk 0:01:52.6]} 33... Rxf2+ {[%clk 0:00:11.4]} 34. Ng2 {[%clk
0:01:53.5]} 34... Qa8 {[%clk 0:00:10.9]} 35. Kh3 {[%clk 0:01:54.4]} 35... Rxf3
{[%clk 0:00:10.7]} 36. Kh4 {[%clk 0:01:54.4]} 36... Rf2 {[%clk 0:00:11]} 37. Ne3
{[%clk 0:01:54.2]} 37... Qa2 {[%clk 0:00:11.5]} 38. Ng4 {[%clk 0:01:55.1]} 38...
Qe2 {[%clk 0:00:11.4]} 39. Nxf2 {[%clk 0:01:54.6]} 39... Qxf2 {[%clk 0:00:12.3]}
40. Kg4 {[%clk 0:01:55.4]} 40... Qg2 {[%clk 0:00:12.7]} 41. Kf5 {[%clk
0:01:56.3]} 41... Bd8 {[%clk 0:00:12]} 42. h6 {[%clk 0:01:57.2]} 42... Qh3+
{[%clk 0:00:11.6]} 43. g4 {[%clk 0:01:56.3]} 43... Qf3# {[%clk 0:00:12.2]} 0-1

[Event "*** Titled Tuesday Blitz"]
[Site "Chess.com"]
[Date "2020.10.20"]
[Round "4"]
[White "Sibelephant"]
[Black "sergiochess83"]
[Result "1-0"]
[WhiteElo "3097"]
[BlackElo "2746"]
[TimeControl "180+1"]
[EndTime "10:39:43 PDT"]
[Termination "Sibelephant won by resignation"]

1. Nf3 {[%clk 0:02:59.8]} 1... d5 {[%clk 0:02:58.5]} 2. b3 {[%clk 0:03:00.1]}
2... Bg4 {[%clk 0:02:56.5]} 3. e3 {[%clk 0:02:59.7]} 3... e6 {[%clk 0:02:54.7]}
4. Bb2 {[%clk 0:02:59.5]} 4... Nf6 {[%clk 0:02:53.3]} 5. h3 {[%clk 0:02:59.8]}
5... Bh5 {[%clk 0:02:51.9]} 6. d3 {[%clk 0:03:00.1]} 6... Bd6 {[%clk 0:02:40.9]}
7. g4 {[%clk 0:02:57.7]} 7... Bg6 {[%clk 0:02:40.4]} 8. g5 {[%clk 0:02:58]} 8...
Nh5 {[%clk 0:02:32.9]} 9. Rg1 {[%clk 0:02:58.1]} 9... Nd7 {[%clk 0:02:28.7]} 10.
Nh4 {[%clk 0:02:53.1]} 10... Be7 {[%clk 0:01:57.6]} 11. Qg4 {[%clk 0:02:40.4]}
11... O-O {[%clk 0:01:37.7]} 12. Nd2 {[%clk 0:02:38.9]} 12... a5 {[%clk
0:01:21.8]} 13. a4 {[%clk 0:02:37.7]} 13... f5 {[%clk 0:00:48.7]} 14. gxf6
{[%clk 0:02:26.3]} 14... Bxf6 {[%clk 0:00:48.3]} 15. Nxg6 {[%clk 0:02:04.6]}
15... hxg6 {[%clk 0:00:40.5]} 16. d4 {[%clk 0:02:03.5]} 16... Bh4 {[%clk
0:00:30.9]} 17. Nf3 {[%clk 0:01:38.5]} 17... Rxf3 {[%clk 0:00:18.5]} 18. Qxf3
{[%clk 0:01:38.5]} 18... Qe7 {[%clk 0:00:19.1]} 19. Qg4 {[%clk 0:01:33.8]} 19...
Rf8 {[%clk 0:00:17.8]} 20. Rg2 {[%clk 0:01:34.3]} 20... Qb4+ {[%clk 0:00:14.8]}
21. Ke2 {[%clk 0:01:23.3]} 21... Qe7 {[%clk 0:00:07]} 22. Qxg6 {[%clk
0:01:19.7]} 22... Ndf6 {[%clk 0:00:06.9]} 23. Ba3 {[%clk 0:01:18.9]} 1-0